bitfinex/quotes_ETHUSD_20251221
["timestamp","ask_amount","ask_price","bid_price","bid_amount"]
[1766329002467,0.42,2974.5,2973.9,1.0636]
[1766329002663,7.3533,2974.5,2973.9,1.0636]
[1766329002868,9.8793,2974.5,2973.9,1.0636]
[1766329003088,0.98793,2974.4,2973.9,1.0636]
[1766329003289,9.8793,2974.5,2973.9,1.0636]
[1766329003489,0.42,2974.5,2973.9,1.0636]
[1766329003790,6.9333,2974.4,2973.9,1.0636]
[1766329004358,9.4593,2974.4,2973.9,1.0636]
[1766329004557,9.4593,2974.4,2973.8,0.414]
[1766329005696,0.42,2974.5,2973.8,0.414]
[1766329005992,9.4593,2974.4,2973.8,0.414]
[1766329006195,6.9333,2974.3,2973.8,0.002]
[1766329006395,8.79456386,2974.5,2973.8,0.002]
[1766329006600,6.9333,2974.2,2973.8,0.002]
[1766329006783,5.43263593,2974.5,2973.8,0.002]
[1766329006966,9.4593,2974.3,2973.8,0.002]
[1766329007168,6.9333,2974.2,2973.8,0.002]
[1766329007597,9.4593,2974.2,2973.8,0.002]
[1766329009270,4.34251798,2974.4,2973.8,0.002]
[1766329009484,6.9333,2974.1,2973.8,0.002]
[1766329009692,9.4593,2974.1,2973.8,0.002]
[1766329010396,9.4593,2974.1,2973.5,0.412]
[1766329010397,9.4593,2974.0,2973.5,0.412]
[1766329010603,6.9333,2973.9,2973.5,0.412]
[1766329010810,9.4593,2973.9,2973.5,0.412]
[1766329011010,9.4593,2973.9,2973.4,0.002]
[1766329011199,6.9333,2973.8,2973.4,0.002]
[1766329011509,9.4593,2973.8,2973.4,0.002]
[1766329012709,9.83747023,2973.8,2973.4,0.002]
[1766329012910,6.9333,2973.5,2973.4,0.002]
[1766329013610,2.526,2973.6,2973.4,0.002]
[1766329013813,6.9333,2973.5,2973.2,0.002]
[1766329013982,9.4593,2973.4,2973.2,0.002]
[1766329014682,0.42,2973.7,2973.2,1.0656]
[1766329015411,0.413,2973.8,2973.2,1.0656]
[1766329015614,9.8793,2974.0,2973.2,1.0656]
[1766329015798,0.98793,2973.9,2973.2,1.0656]
[1766329016113,0.98793,2973.9,2973.3,1.0636]
[1766329016916,0.42,2974.0,2973.3,1.0636]
[1766329017646,1.01065738,2974.1,2973.4,0.03363153]
[1766329017909,6.9333,2974.4,2973.4,0.4749]
[1766329018118,9.4593,2974.1,2973.4,0.4749]
[1766329018707,6.9333,2974.1,2973.4,0.4749]
[1766329018886,9.4593,2973.9,2973.4,0.4749]
[1766329019089,2.526,2973.9,2973.4,0.52638166]
[1766329019298,2.526,2973.7,2973.2,1.42557567]
[1766329019514,6.9333,2973.8,2973.3,0.4749]
[1766329019697,2.526,2973.9,2973.3,0.4749]
[1766329020309,9.4593,2973.9,2973.3,0.4749]
[1766329021404,9.4593,2973.9,2973.3,0.4769]
[1766329021617,9.4593,2973.9,2973.4,0.52657992]
[1766329021825,9.4603,2973.9,2973.3,0.4769]
[1766329026824,0.001,2973.9,2973.3,0.002]
[1766329027011,7.3645,2973.6,2973.3,0.002]
[1766329027618,2.481,2973.7,2973.3,0.002]
[1766329028533,9.8455,2973.7,2973.3,0.002]
[1766329032325,0.001,2973.8,2973.3,0.19224893]
[1766329033231,9.8465,2973.8,2973.3,0.19224893]
[1766329033524,2.482,2973.8,2973.3,0.19224893]
[1766329033702,9.8455,2973.7,2973.3,0.19224893]
[1766329034614,2.481,2973.6,2973.3,0.002]
[1766329034808,9.8455,2973.5,2973.3,0.002]
[1766329036921,0.001,2973.8,2973.3,0.002]
[1766329037122,0.001,2973.8,2973.4,0.4749]
[1766329037315,9.8455,2974.3,2973.4,0.4749]
[1766329037644,10.2655,2974.2,2973.4,0.4749]
[1766329038149,0.42,2974.6,2973.8,0.0529]
[1766329038617,0.001,2974.1,2973.8,0.0529]
[1766329048855,13.20729925,2974.6,2973.8,0.0519]
[1766329053657,13.20729925,2974.6,2973.8,0.0539]
[1766329053861,13.20829925,2974.6,2973.8,0.0539]
[1766329054764,9.8588,2974.5,2973.8,0.0539]
[1766329059870,3.36281396,2974.6,2973.8,0.0539]
[1766329060042,12.61301396,2974.6,2973.8,0.0539]
[1766329060242,9.2512,2974.6,2973.8,0.0539]
[1766329060534,12.61300704,2974.6,2973.8,0.0539]
[1766329060769,5.83170704,2974.6,2973.8,0.0539]
[1766329060945,9.2502,2974.5,2973.8,0.0539]
[1766329062774,9.2512,2974.5,2973.8,0.0539]
[1766329063475,0.001,2974.5,2973.8,0.53792043]
[1766329063674,0.001,2974.6,2974.1,0.0509]
[1766329063974,0.001,2974.6,2974.1,0.4639]
[1766329068976,0.001,2974.6,2974.2,0.0509]
[1766329078399,0.001,2975.1,2974.2,3.41314867]
[1766329078698,0.001,2975.1,2974.3,5.01887146]
[1766329078997,0.001,2975.1,2974.3,0.38261487]
[1766329079165,0.001,2975.1,2974.4,3.36202259]
[1766329079365,0.001,2975.1,2974.5,0.414]
[1766329079796,0.001,2975.1,2974.6,0.13468217]
[1766329082114,0.001,2975.1,2974.7,0.39105758]
[1766329082695,0.001,2975.1,2974.7,0.52573975]
[1766329083919,9.2512,2975.1,2974.0,3.36238586]
[1766329084090,9.2512,2975.1,2974.1,0.414]
[1766329084091,6.7813,2974.8,2974.1,0.414]
[1766329084409,9.2502,2974.8,2974.1,0.414]
[1766329085300,6.9279,2975.0,2974.1,0.414]
[1766329085509,9.3514,2974.7,2974.1,0.414]
[1766329085680,4.51807707,2974.9,2974.1,0.414]
[1766329086080,9.3514,2974.8,2974.1,0.414]
[1766329086308,9.3514,2974.7,2974.1,0.414]
[1766329086715,2.4235,2974.6,2974.1,0.414]
[1766329087010,9.3514,2974.6,2974.1,0.414]
[1766329087577,9.3514,2974.6,2973.8,1.01231702]
[1766329087578,4.63647997,2974.5,2973.8,1.01231702]
[1766329087777,6.9279,2974.0,2973.8,0.002]
[1766329088505,9.3514,2974.0,2973.8,0.002]
[1766329090283,6.9279,2974.1,2973.4,0.414]
[1766329090610,6.9279,2973.9,2973.4,0.414]
[1766329091110,6.9279,2973.9,2973.4,0.416]
[1766329091811,6.9279,2973.9,2973.4,0.414]
[1766329092012,6.9279,2973.7,2973.3,0.002]
[1766329092186,9.3514,2973.5,2973.3,0.002]
[1766329092712,7.99907199,2973.9,2973.3,0.002]
[1766329092713,9.3514,2973.8,2973.3,0.002]
[1766329092920,7.99907199,2973.9,2973.3,0.002]
[1766329093227,6.9279,2973.4,2972.9,0.416]
[1766329093387,9.3514,2973.4,2972.9,0.416]
[1766329095618,9.3514,2973.4,2972.9,0.79858027]
[1766329096512,0.421,2973.6,2972.9,0.79858027]
[1766329096707,6.9279,2973.5,2972.9,0.79858027]
[1766329099712,6.9279,2973.5,2973.0,0.004]
[1766329102224,2.4235,2973.3,2972.5,0.002]
[1766329102401,10.28654,2973.4,2972.6,0.004]
[1766329102601,0.421,2973.3,2972.6,0.004]
[1766329103093,0.421,2973.3,2972.9,0.002]
[1766329103293,0.75613095,2973.2,2972.9,0.002]
[1766329104222,0.89091205,2973.2,2972.9,0.002]
[1766329107727,10.21931205,2973.2,2972.9,0.002]
[1766329107900,0.89091205,2973.2,2972.9,0.002]
[1766329109728,0.75613095,2973.2,2972.9,0.002]
[1766329112334,0.75613095,2973.2,2972.9,0.006]
[1766329112922,0.1347811,2973.3,2972.9,0.002]
[1766329113333,0.001,2973.5,2972.9,0.002]
[1766329113635,1.01181743,2973.5,2972.9,0.002]
[1766329115834,0.001,2973.5,2972.9,0.002]
[1766329118033,0.001,2973.5,2972.9,0.03563718]
[1766329118333,0.001,2973.5,2973.0,0.38134343]
[1766329118539,0.001,2973.5,2973.1,0.03363492]
[1766329118734,0.001,2973.5,2973.0,0.38134343]
[1766329119035,0.001,2973.5,2973.0,3.74487396]
[1766329122036,0.001,2973.5,2973.0,7.10847974]
[1766329122209,0.001,2973.5,2973.1,1.17638066]
[1766329122607,0.001,2973.5,2973.1,1.19322759]
[1766329123714,1.01060971,2974.1,2973.1,1.19322759]
[1766329123715,1.01060971,2974.1,2973.2,3.36337952]
[1766329123915,0.421,2974.5,2973.3,0.44763266]
[1766329124149,1.01054503,2974.4,2973.3,0.46447959]
[1766329124324,1.01054503,2974.4,2973.4,0.71912386]
[1766329124515,0.001,2974.7,2973.5,0.01684693]
[1766329125022,1.01146334,2974.7,2973.5,0.01684693]
[1766329125223,1.01146334,2974.7,2973.7,0.01684693]
[1766329125426,2.43239441,2974.7,2973.7,0.01684693]
[1766329126444,5.79408806,2974.7,2973.8,0.414]
[1766329127539,2.43239441,2974.7,2973.8,3.77665373]
[1766329127744,0.001,2974.7,2973.8,3.77665373]
[1766329128038,0.001,2974.7,2973.8,0.414]
[1766329129353,9.8352,2974.6,2973.8,0.414]
[1766329129535,1.6560582,2974.6,2973.8,0.414]
[1766329129737,9.8352,2974.5,2973.8,0.414]
[1766329129937,3.36272997,2974.7,2973.8,0.414]
[1766329130121,13.19792997,2974.7,2973.8,0.414]
[1766329130626,9.8352,2974.6,2973.8,0.414]
[1766329130821,2.5883,2974.6,2973.8,0.414]
[1766329131026,7.2469,2974.5,2973.8,0.79168794]
[1766329131745,7.2469,2974.3,2973.8,0.414]
[1766329132264,2.5883,2974.4,2973.8,0.414]
[1766329132564,7.2469,2974.5,2973.8,0.414]
[1766329133462,0.421,2974.6,2973.8,0.414]
[1766329133830,3.78281709,2974.6,2973.8,0.414]
[1766329134140,0.001,2974.5,2973.8,0.414]
[1766329135461,9.8362,2974.5,2973.8,0.414]
[1766329135674,4.63696789,2974.2,2973.8,0.414]
[1766329135833,9.8352,2974.1,2973.4,0.414]
[1766329136531,7.99905275,2974.4,2973.4,0.414]
[1766329136532,9.8352,2974.3,2973.4,0.414]
[1766329136763,0.82043832,2974.2,2973.4,0.414]
[1766329137465,10.65563832,2974.2,2973.4,0.414]
[1766329138366,9.8352,2974.1,2973.4,0.414]
[1766329140346,0.82043832,2974.2,2973.4,3.77712872]
[1766329141044,10.65563832,2974.2,2973.4,3.77712872]
[1766329141862,10.65563832,2974.2,2973.4,0.414]
[1766329142062,0.001,2974.5,2973.4,12.15498065]
[1766329142263,0.001,2974.5,2973.6,7.99989498]
[1766329143582,0.001,2974.5,2973.6,3.36292709]
[1766329144654,0.001,2974.5,2973.6,4.63696789]
[1766329145843,0.001,2974.5,2973.7,0.03362814]
[1766329146067,0.001,2974.5,2973.9,4.63696789]
[1766329146251,0.001,2974.5,2973.8,0.415]
[1766329146954,0.001,2974.5,2973.8,3.77766239]
[1766329147378,0.001,2974.5,2973.8,7.14036331]
[1766329147561,0.001,2974.5,2973.8,3.77766239]
[1766329147883,0.001,2974.5,2973.9,1.24533814]
[1766329151446,0.001,2974.5,2973.8,3.77766239]
[1766329157279,0.001,2974.5,2973.8,0.415]
[1766329157790,0.001,2974.5,2973.8,3.77766487]
[1766329158888,0.001,2974.5,2973.8,0.415]
[1766329159582,0.001,2974.5,2973.8,3.77767979]
[1766329159777,0.001,2974.5,2973.9,0.37776798]
[1766329171979,0.001,2974.5,2973.8,3.77760724]
[1766329173790,0.001,2974.5,2973.8,0.415]
[1766329173990,9.4964,2974.5,2973.8,0.415]
[1766329176611,0.001,2974.5,2973.8,0.415]
[1766329176818,9.1315,2974.4,2973.8,0.415]
[1766329177317,0.001,2974.5,2973.8,0.415]
[1766329187517,9.1325,2974.5,2973.8,0.415]
[1766329187924,0.001,2974.5,2973.8,0.415]
[1766329188224,0.001,2974.5,2973.8,0.79277442]
[1766329188426,0.001,2974.5,2973.8,4.15542877]
[1766329190407,0.001,2974.5,2973.8,0.79277442]
[1766329190596,2.3768,2974.4,2973.8,0.79277442]
[1766329190818,9.1315,2974.4,2973.8,0.415]
[1766329193023,0.001,2974.5,2973.8,0.415]
[1766329194304,2.3768,2974.4,2973.8,0.415]
[1766329194500,9.1315,2974.3,2973.8,0.415]
[1766329195424,9.1325,2974.5,2973.8,0.415]
[1766329195817,0.001,2974.5,2973.8,3.77767919]
[1766329198025,9.1325,2974.5,2973.8,3.77767919]
[1766329200538,6.7547,2974.4,2973.8,0.415]
[1766329200942,0.001,2974.5,2973.8,4.54545631]
[1766329201442,0.001,2974.5,2973.9,0.03362587]
[1766329201741,0.001,2974.5,2973.8,12.54306459]
[1766329201917,0.001,2974.5,2973.8,7.90815723]
[1766329202111,0.001,2974.5,2973.9,0.79081572]
[1766329202806,0.001,2974.5,2973.9,0.92551512]
[1766329203010,0.001,2974.5,2974.0,6.72494956]
[1766329203238,0.001,2974.7,2974.1,8.53490736]
[1766329203414,0.001,2975.1,2974.2,0.415]
[1766329203619,0.001,2975.1,2974.3,0.50499074]
[1766329204313,9.1325,2975.1,2974.3,0.50499074]
[1766329205321,2.6098,2975.0,2974.3,0.50499074]
[1766329205540,9.1128,2974.6,2974.2,0.415]
[1766329206952,6.503,2974.9,2973.7,3.36275171]
[1766329207120,0.422,2974.8,2973.8,0.415]
[1766329207445,6.503,2974.7,2973.8,0.415]
[1766329207741,9.1128,2974.3,2973.8,0.415]
[1766329207943,1.01036465,2974.8,2973.8,3.77768908]
[1766329208155,1.43236465,2974.8,2973.8,3.77768908]
[1766329208952,7.93536465,2974.8,2973.8,3.77768908]
[1766329209443,7.93636465,2974.8,2973.8,3.77768908]
[1766329209949,10.54616465,2974.8,2973.8,3.77768908]
[1766329210345,11.9369288,2974.8,2973.8,4.95523827]
[1766329212122,2.6098,2974.6,2973.8,4.95523827]
[1766329212315,0.422,2974.7,2973.8,1.59254919]
[1766329212513,6.503,2974.4,2973.8,0.415]
[1766329213954,9.1128,2974.3,2973.8,0.415]
[1766329215149,1.43236465,2974.7,2973.8,0.415]
[1766329215451,1.01036465,2974.7,2973.8,7.14038791]
[1766329215679,1.01036465,2974.7,2973.9,1.17752953]
[1766329216035,0.001,2974.8,2973.9,1.17752953]
[1766329218159,0.001,2974.8,2973.9,4.54001548]
[1766329220335,9.1138,2974.8,2973.9,4.54001548]
[1766329223250,9.1138,2974.8,2973.9,4.54201548]
[1766329223558,9.1138,2974.8,2974.0,0.83197025]
[1766329225776,8.8985,2974.7,2973.9,3.36453943]
[1766329226779,8.8985,2974.7,2974.0,3.36244906]
[1766329226936,8.8985,2974.7,2973.9,0.002]
[1766329226937,8.8985,2974.7,2973.9,3.36453597]
[1766329228793,7.99749298,2974.8,2973.9,0.002]
[1766329229380,8.8985,2974.4,2973.9,0.002]
[1766329229745,0.88985,2974.4,2973.9,0.002]
[1766329229944,8.8985,2974.1,2973.9,0.002]
[1766329230139,8.8985,2974.3,2973.5,0.418]
[1766329230362,0.88985,2974.4,2973.5,0.418]
[1766329230563,2.5561,2974.2,2973.5,0.418]
[1766329230875,8.8985,2974.1,2973.5,0.42]
[1766329231450,8.8985,2974.1,2973.5,0.002]
[1766329231451,1.31185,2974.1,2973.5,0.002]
[1766329231646,8.8985,2973.8,2973.5,0.002]
[1766329233543,6.3424,2973.8,2972.9,0.422]
[1766329233851,8.8985,2973.6,2973.0,3.36759053]
[1766329234038,8.8985,2973.6,2973.1,0.004]
[1766329234241,9.86899132,2973.8,2973.1,0.004]
[1766329234460,8.8985,2973.8,2973.1,0.004]
[1766329235246,6.687,2973.5,2972.9,0.418]
[1766329235474,9.0989,2973.5,2972.9,0.418]
[1766329236071,9.0989,2973.5,2972.9,0.422]
[1766329238277,6.687,2973.4,2972.9,0.422]
[1766329238774,6.687,2973.4,2973.0,0.002]
[1766329238959,9.0989,2973.4,2973.0,0.002]
[1766329240578,2.4119,2973.1,2972.7,0.002]
[1766329240778,9.0989,2973.1,2972.7,0.002]
[1766329241679,6.687,2972.9,2972.7,0.002]
[1766329241984,9.0989,2972.8,2972.5,0.418]
[1766329242359,9.0989,2972.8,2972.5,0.002]
[1766329242688,9.0989,2972.7,2972.5,0.002]
[1766329243102,0.90989,2972.8,2972.5,0.002]
[1766329243295,10.00879,2972.8,2972.5,0.002]
[1766329243580,9.0989,2973.1,2972.5,0.006]
[1766329243786,9.5209,2973.1,2972.5,0.006]
[1766329243992,9.65568383,2973.1,2972.5,0.006]
[1766329245732,9.65568383,2973.1,2972.5,0.002]
[1766329245733,6.687,2972.9,2972.5,0.002]
[1766329245871,9.0989,2972.9,2972.5,0.002]
[1766329246192,9.0989,2972.8,2972.5,0.002]
[1766329246687,9.0989,2972.7,2972.5,0.002]
[1766329248281,1.43671193,2972.9,2972.3,0.002]
[1766329248482,9.0989,2972.7,2972.3,0.002]
[1766329250762,1.43671193,2972.9,2972.3,0.002]
[1766329250968,2.4119,2973.2,2972.4,0.004]
[1766329251193,10.53278555,2973.2,2972.4,0.004]
[1766329251389,9.5219,2973.2,2972.4,0.004]
[1766329251688,9.90296163,2973.2,2972.4,0.004]
[1766329252401,9.90296163,2973.2,2972.4,3.36428475]
[1766329252564,9.90296163,2973.2,2972.6,0.004]
[1766329252962,0.423,2973.2,2972.6,0.004]
[1766329254700,7.11,2973.2,2972.6,0.004]
[1766329254901,9.5229,2973.2,2972.6,0.004]
[1766329256293,9.0989,2973.1,2972.6,0.004]
[1766329257875,9.0989,2973.1,2972.3,0.38106163]
[1766329257876,0.38106163,2973.1,2972.4,0.004]
[1766329258105,0.424,2973.2,2972.4,0.004]
[1766329258308,9.5229,2973.2,2972.5,0.37893727]
[1766329258511,9.0989,2973.1,2972.5,0.37893727]
[1766329261505,6.687,2973.1,2972.5,0.37893727]
[1766329261713,9.0989,2973.0,2972.5,0.37893727]
[1766329264293,9.0989,2973.0,2972.5,0.004]
[1766329266292,0.001,2973.1,2972.3,0.38106163]
[1766329266592,8.6317,2972.9,2972.3,0.38106163]
[1766329266794,8.6317,2972.9,2972.3,0.38506163]
[1766329270010,6.1946,2972.8,2972.3,0.006]
[1766329270209,8.6317,2972.8,2972.3,0.006]
[1766329272916,0.423,2972.8,2972.0,0.002]
[1766329273089,8.6317,2972.7,2972.0,0.002]
[1766329273416,8.6317,2972.4,2972.0,0.002]
[1766329275296,1.01108315,2972.7,2972.0,0.002]
[1766329275498,2.4371,2972.4,2972.0,0.002]
[1766329275692,6.1946,2972.2,2972.0,0.002]
[1766329275901,8.6317,2972.2,2972.0,0.002]
[1766329276730,0.94388638,2972.6,2971.9,0.002]
[1766329276923,6.1946,2972.1,2971.8,0.416]
[1766329277100,6.1946,2972.5,2971.8,0.416]
[1766329277300,6.1946,2972.3,2971.8,0.416]
[1766329277517,8.6317,2972.1,2971.8,0.416]
[1766329278709,6.1956,2973.0,2972.0,0.004]
[1766329278913,9.64368434,2973.0,2972.2,0.004]
[1766329279115,8.6327,2973.0,2972.4,0.004]
[1766329279542,0.001,2973.0,2972.4,0.004]
[1766329280025,0.001,2973.0,2972.5,0.004]
[1766329287343,4.64196549,2973.0,2972.2,0.417]
[1766329287639,6.4289,2972.5,2972.0,0.002]
[1766329287843,0.423,2972.7,2972.0,0.002]
[1766329288016,9.0445,2972.6,2972.0,0.002]
[1766329288204,9.0445,2972.6,2971.8,3.36491976]
[1766329288205,2.6156,2972.6,2971.8,3.36491976]
[1766329288410,0.423,2972.7,2971.7,0.002]
[1766329288411,9.0445,2972.2,2971.7,0.002]
[1766329288609,9.4675,2972.2,2971.7,0.002]
[1766329288825,0.423,2972.2,2971.7,0.002]
[1766329289116,0.423,2972.2,2971.7,0.006]
[1766329291474,9.4675,2972.2,2971.7,0.002]
[1766329291655,9.0445,2972.1,2971.7,0.002]
[1766329294455,0.423,2972.2,2971.7,0.002]
[1766329295492,8.9647,2972.2,2971.7,0.002]
[1766329295699,6.0366,2972.1,2971.7,0.002]
[1766329295876,6.0366,2971.8,2971.5,0.002]
[1766329296080,10.3459092,2972.2,2971.5,0.002]
[1766329296398,10.3459092,2972.2,2971.5,0.008]
[1766329296792,6.0366,2972.1,2971.5,0.008]
[1766329297105,8.5417,2972.1,2971.5,0.008]
[1766329297496,2.5051,2972.1,2971.5,0.002]
[1766329297792,2.5051,2971.8,2971.5,0.002]
[1766329297999,6.0366,2971.9,2971.5,0.002]
[1766329298163,5.49440268,2972.1,2971.5,0.002]
[1766329298164,8.5417,2971.8,2971.5,0.002]
[1766329299579,6.0366,2971.7,2971.5,0.002]
[1766329300701,8.5417,2971.7,2971.5,0.002]
[1766329300880,6.0366,2971.6,2971.3,0.002]
[1766329301077,1.66938176,2971.7,2971.3,0.002]
[1766329301283,1.24638176,2971.7,2971.1,0.002]
[1766329301603,1.43441039,2971.6,2971.1,0.008]
[1766329301904,0.423,2971.6,2971.1,0.008]
[1766329302197,0.13485471,2971.5,2971.1,0.008]
[1766329302372,0.55785471,2971.5,2971.1,0.008]
[1766329302569,10.09149621,2972.8,2971.2,0.006]
[1766329302774,8.5417,2971.9,2971.5,0.002]
[1766329302988,0.423,2971.8,2971.5,0.002]
[1766329303175,5.06396549,2971.8,2971.5,0.002]
[1766329303381,8.5417,2971.7,2971.5,0.002]
[1766329303712,9.91575102,2971.7,2971.5,0.002]
[1766329305292,10.33875102,2971.7,2971.5,0.002]
[1766329306588,0.423,2971.7,2971.5,0.002]
[1766329307676,8.5417,2971.8,2971.5,0.002]
[1766329307876,0.423,2971.7,2971.5,0.002]
[1766329308304,1.01129447,2972.1,2971.5,0.002]
[1766329308606,8.9647,2972.0,2971.5,0.002]
[1766329308803,6.0366,2971.9,2971.5,0.002]
[1766329309005,6.4596,2971.9,2971.5,0.002]
[1766329309377,1.01129447,2972.1,2971.5,0.002]
[1766329309585,9.55299447,2972.1,2971.5,0.008]
[1766329309792,0.423,2972.0,2971.6,0.006]
[1766329310198,0.423,2972.1,2971.6,0.006]
[1766329313821,8.9647,2972.1,2971.6,0.006]
[1766329314117,8.5417,2972.1,2971.6,0.006]
[1766329314411,8.9647,2972.1,2971.6,0.006]
[1766329316226,8.5417,2972.1,2971.6,0.006]
[1766329316399,0.001,2972.2,2971.6,0.006]
[1766329316400,0.424,2972.2,2971.7,0.006]
[1766329316993,8.9657,2972.2,2971.7,0.006]
[1766329317422,8.9657,2972.2,2971.5,0.002]
[1766329317619,8.5417,2972.1,2971.5,0.002]
[1766329317793,0.424,2972.2,2971.5,0.002]
[1766329317993,8.5417,2972.1,2971.5,0.002]
[1766329318192,0.424,2972.2,2971.5,0.002]
[1766329318616,2.5051,2972.0,2971.5,0.002]
[1766329319026,8.5417,2972.0,2971.5,0.002]
[1766329320888,8.5417,2972.0,2971.5,0.008]
[1766329321314,6.0366,2972.0,2971.5,0.008]
[1766329321514,0.423,2972.1,2971.6,0.006]
[1766329326934,8.3552,2972.0,2971.5,0.002]
[1766329327115,2.6185,2971.9,2971.5,0.002]
[1766329329495,5.7367,2972.0,2971.5,0.002]
[1766329329797,0.001,2972.2,2971.6,0.006]
[1766329330030,0.424,2972.3,2971.8,0.006]
[1766329330209,0.424,2972.3,2971.6,0.0336519]
[1766329330413,0.424,2972.3,2971.7,0.006]
[1766329331331,8.3552,2972.5,2971.8,0.006]
[1766329331501,0.424,2972.3,2971.8,0.006]
[1766329331701,0.424,2972.3,2971.8,0.34310649]
[1766329334627,3.0425,2972.3,2971.6,0.006]
[1766329334930,5.7367,2972.2,2971.6,0.006]
[1766329337433,2.6185,2972.0,2971.5,0.002]
[1766329337644,11.37359176,2972.2,2971.1,0.002]
[1766329337645,5.7367,2971.6,2971.1,0.002]
[1766329338211,8.3552,2971.6,2971.1,0.002]
[1766329339301,8.3552,2971.6,2971.5,0.002]
[1766329340514,0.424,2971.9,2971.5,0.002]
[1766329340735,0.001,2972.2,2971.5,0.002]
[1766329340940,1.09797595,2972.2,2971.5,0.01]
[1766329342211,0.67397595,2972.2,2971.5,0.01]
[1766329342518,0.425,2972.2,2971.6,0.008]
[1766329343633,6.1617,2972.2,2971.6,0.008]
[1766329351247,5.7377,2972.2,2971.6,3.36513792]
[1766329351436,0.425,2972.2,2971.7,0.008]
[1766329351740,0.425,2972.2,2971.8,0.008]
[1766329351945,0.425,2972.2,2971.8,0.04164963]
[1766329352114,0.001,2972.2,2971.8,0.008]
[1766329352315,0.425,2972.2,2971.9,0.008]
[1766329352616,0.001,2972.2,2971.9,0.008]
[1766329353645,0.001,2972.2,2971.8,0.33731379]
[1766329353949,0.001,2972.2,2971.8,0.34531379]
[1766329355229,8.0353,2972.2,2971.5,0.01]
[1766329355640,8.0343,2972.1,2971.5,0.01]
[1766329360647,5.6474,2972.0,2971.5,0.002]
[1766329361236,8.0343,2971.9,2971.5,0.002]
[1766329363441,2.3869,2971.9,2971.5,0.002]
[1766329363640,8.0343,2971.8,2971.5,0.002]
[1766329363837,8.0343,2971.8,2971.1,0.002]
[1766329363838,5.6474,2971.4,2971.1,0.002]
[1766329364054,0.424,2971.3,2971.1,0.002]
[1766329364741,8.4583,2971.3,2970.8,0.002]
[1766329365075,5.6474,2971.2,2970.8,0.002]
[1766329365239,8.0343,2970.8,2970.4,0.002]
[1766329366555,3.36610792,2970.8,2970.4,0.002]
[1766329366756,5.6474,2970.6,2970.4,0.002]
[1766329367829,0.424,2970.5,2970.0,0.04567003]
[1766329368034,0.424,2970.5,2970.0,0.012]
[1766329368236,0.424,2970.5,2970.0,0.04567003]
[1766329368544,0.424,2970.5,2970.0,0.012]
[1766329368744,8.4583,2970.5,2969.9,3.36903901]
[1766329368942,0.424,2970.5,2969.9,0.014]
[1766329369137,8.0343,2970.7,2970.0,0.012]
[1766329369347,6.0714,2970.7,2970.1,0.012]
[1766329370265,6.0714,2970.7,2970.5,0.002]
[1766329372252,2.8109,2970.7,2969.9,0.002]
[1766329372456,5.6474,2970.6,2969.9,0.35212024]
[1766329372756,5.6474,2970.6,2969.9,0.014]
[1766329373238,6.0714,2970.6,2969.9,0.014]
[1766329373573,6.0714,2970.6,2970.0,0.012]
[1766329375234,8.4583,2970.6,2970.0,0.012]
[1766329377051,0.424,2970.6,2970.0,0.012]
[1766329378572,8.4583,2970.6,2970.0,0.012]
[1766329378748,0.424,2970.6,2970.0,0.012]
[1766329381845,0.001,2970.7,2970.1,0.012]
[1766329382145,0.425,2970.7,2970.2,0.012]
[1766329382371,0.001,2970.7,2970.2,0.012]
[1766329383271,0.424,2970.8,2970.2,0.012]
[1766329383473,0.424,2970.8,2970.1,7.26687989]
[1766329383474,0.412,2970.8,2970.1,7.26687989]
[1766329383647,0.412,2970.8,2970.2,1.56213902]
[1766329384565,0.412,2970.8,2970.1,3.9]
[1766329384765,0.412,2970.8,2970.1,7.26684687]
[1766329385373,0.412,2970.8,2970.1,3.9]
[1766329385578,8.0343,2971.0,2970.1,3.9]
[1766329385579,0.001,2970.7,2970.2,3.40041897]
[1766329386757,0.001,2970.7,2970.1,8.54941467]
[1766329386956,0.001,2970.7,2970.2,1.22564987]
[1766329387675,0.001,2970.7,2970.2,4.59241689]
[1766329387867,0.424,2971.1,2970.2,4.59241689]
[1766329388473,0.424,2971.1,2970.2,1.22564987]
[1766329388653,0.424,2971.1,2970.2,4.59240709]
[1766329388858,8.233,2971.2,2970.3,0.79592931]
[1766329389055,0.424,2971.1,2970.3,0.79592931]
[1766329389277,0.424,2971.0,2970.3,0.79592931]
[1766329390650,0.424,2971.0,2970.3,4.16249114]
[1766329390849,8.233,2971.8,2970.9,4.64941467]
[1766329391049,0.001,2971.9,2971.2,4.64941467]
[1766329391243,0.001,2971.9,2971.0,5.55088776]
[1766329391473,0.001,2971.9,2971.2,0.01684693]
[1766329393979,0.001,2971.9,2971.2,3.38245173]
[1766329394151,0.001,2971.9,2971.3,0.33824517]